bitfinex-derivatives/quotes_BTCF0:USTF0_20250803
["timestamp","ask_amount","ask_price","bid_price","bid_amount"]
[1754230402434,1.07650338,114050.0,114040.0,1.38203365]
[1754230404733,1.07650338,114050.0,114040.0,1.55741305]
[1754230405530,1.07650338,114050.0,114040.0,1.38203365]
[1754230405531,1.14820002,114050.0,114040.0,1.38203365]
[1754230407147,1.14876305,114050.0,114040.0,1.38203365]
[1754230408935,1.14876305,114050.0,114040.0,1.55741315]
[1754230409940,1.14876305,114050.0,114040.0,1.38203365]
[1754230410141,1.14876305,114050.0,114040.0,1.65087365]
[1754230410335,1.69190533,114050.0,114040.0,1.13004365]
[1754230411042,0.5969996,114040.0,114030.0,0.68913]
[1754230411241,1.52189827,114040.0,114030.0,0.68913]
[1754230411442,1.61526893,114040.0,114030.0,0.68913]
[1754230412337,1.07212665,114040.0,114030.0,0.68913]
[1754230412529,1.07312665,114040.0,114030.0,0.68913]
[1754230414143,1.07312665,114040.0,114030.0,0.34575]
[1754230414439,1.07312665,114040.0,114030.0,0.07679]
[1754230414642,0.1754104,114020.0,114010.0,0.2192685]
[1754230414842,0.1754104,114020.0,114000.0,0.4046572]
[1754230414843,0.5970458,114010.0,114000.0,0.4243205]
[1754230415047,0.42162,114010.0,114000.0,0.96746278]
[1754230415252,0.5970458,114010.0,114000.0,0.6933205]
[1754230415451,0.6180462,114010.0,114000.0,0.6933205]
[1754230415647,0.63080428,114010.0,114000.0,0.6933205]
[1754230415843,0.63080428,114010.0,114000.0,1.23646278]
[1754230416148,0.63080428,114010.0,114000.0,1.23946278]
[1754230416346,0.63080428,114010.0,114000.0,0.3396212]
[1754230416347,0.62880428,114010.0,114000.0,0.3396212]
[1754230416556,0.98960428,114010.0,114000.0,0.3855812]
[1754230416744,0.98960428,114010.0,114000.0,0.4992512]
[1754230417249,0.98960428,114010.0,114000.0,0.27785]
[1754230417447,0.98960428,114010.0,114000.0,0.21866]
[1754230417655,0.98960428,114010.0,114000.0,0.27785]
[1754230417850,0.99060428,114010.0,114000.0,0.27485]
[1754230418058,0.99060428,114010.0,114000.0,0.4502912]
[1754230418654,0.99060428,114010.0,114000.0,0.4982512]
[1754230419458,0.99060428,114010.0,114000.0,0.4962512]
[1754230419762,0.99160428,114010.0,114000.0,0.4962512]
[1754230422355,0.63080428,114010.0,114000.0,1.04150348]
[1754230422556,0.08474848,114010.0,114000.0,1.04150348]
[1754230422859,0.43427428,114010.0,114000.0,1.04150348]
[1754230423054,0.62485428,114010.0,114000.0,0.4983612]
[1754230423362,0.62485428,114010.0,114000.0,1.04150348]
[1754230424060,0.62485428,114010.0,114000.0,0.4983612]
[1754230424664,0.98565428,114010.0,114000.0,0.4983612]
[1754230425864,0.62485428,114010.0,114000.0,0.4983612]
[1754230426164,0.98565428,114010.0,114000.0,0.4983612]
[1754230426659,0.44942848,114010.0,114000.0,1.04150348]
[1754230426853,0.37476848,114010.0,114000.0,1.40230348]
[1754230427061,0.08206848,114010.0,114000.0,1.38172655]
[1754230427262,0.03575848,114010.0,114000.0,1.38172655]
[1754230427567,0.21118418,114010.0,114000.0,0.83858427]
[1754230427869,0.98565418,114010.0,114000.0,0.74782427]
[1754230429576,1.08506118,114010.0,114000.0,0.4454412]
[1754230430069,1.08506118,114010.0,114000.0,0.4798312]
[1754230430270,1.62820346,114010.0,114000.0,0.4798312]
[1754230430458,1.62820346,114010.0,114000.0,0.30439]
[1754230430766,1.08506118,114010.0,114000.0,0.30439]
[1754230431363,1.08506118,114010.0,114000.0,0.4798311]
[1754230431562,0.5891111,114000.0,113990.0,1.2134]
[1754230431757,0.3383465,113990.0,113980.0,0.11329]
[1754230431962,1.51406918,113990.0,113980.0,0.11329]
[1754230432164,1.61218993,113990.0,113980.0,0.11329]
[1754230432358,1.61218993,113990.0,113970.0,0.6735051]
[1754230432359,0.4593315,113980.0,113970.0,0.6735051]
[1754230432565,0.9499415,113980.0,113970.0,0.6735051]
[1754230432764,0.9499415,113980.0,113970.0,0.5248951]
[1754230433060,1.06842955,113980.0,113970.0,0.6735051]
[1754230433664,1.06842955,113980.0,113970.0,0.22751]
[1754230433975,0.5891569,113970.0,113960.0,0.49871]
[1754230434164,0.9713242,113970.0,113960.0,0.49871]
[1754230434666,0.9713242,113970.0,113960.0,0.44368]
[1754230434868,0.9693242,113970.0,113960.0,0.44368]
[1754230435062,0.9693242,113970.0,113960.0,0.6191824]
[1754230435369,0.9673242,113970.0,113960.0,0.6742124]
[1754230435569,0.9673242,113970.0,113960.0,0.6772124]
[1754230435770,1.03803867,113970.0,113960.0,0.50171]
[1754230436272,1.68052272,113970.0,113960.0,0.2752]
[1754230436465,1.13738044,113970.0,113960.0,0.2722]
[1754230436671,1.68052272,113970.0,113960.0,0.2722]
[1754230437770,1.68052272,113970.0,113960.0,0.001]
[1754230438668,1.13738044,113970.0,113960.0,0.001]
[1754230438869,1.68052272,113970.0,113960.0,0.001]
[1754230439272,0.3383925,113960.0,113950.0,0.446907]
[1754230439566,0.9713398,113960.0,113950.0,0.446907]
[1754230439771,1.06681346,113960.0,113950.0,0.446907]
[1754230440069,1.06681346,113960.0,113950.0,0.332687]
[1754230440271,1.06681346,113960.0,113950.0,0.391877]
[1754230440470,1.06781346,113960.0,113950.0,0.391877]
[1754230440677,1.06781346,113960.0,113950.0,0.3479976]
[1754230441377,1.06781346,113960.0,113950.0,0.38244074]
[1754230441962,0.32904096,113960.0,113950.0,0.97365302]
[1754230442166,0.63435346,113960.0,113950.0,0.97365302]
[1754230442366,0.53351096,113960.0,113950.0,0.97365302]
[1754230442571,0.70901346,113960.0,113950.0,0.43051074]
[1754230442771,0.70901346,113960.0,113950.0,0.97365302]
[1754230443275,1.06981346,113960.0,113950.0,0.43051074]
[1754230443471,0.70901346,113960.0,113950.0,0.43051074]
[1754230443678,0.4380373,113960.0,113950.0,1.33445302]
[1754230444271,0.6135398,113960.0,113950.0,1.33445302]
[1754230444474,0.6135398,113960.0,113950.0,0.79131074]
[1754230444672,0.9743398,113960.0,113950.0,0.70239074]
[1754230445183,1.07390412,113960.0,113950.0,0.65460074]
[1754230447466,1.6170464,113960.0,113950.0,0.40650386]
[1754230447975,0.5891879,113950.0,113940.0,0.6753538]
[1754230448178,0.9713552,113950.0,113940.0,0.6753538]
[1754230448870,0.9713552,113950.0,113930.0,1.93698748]
[1754230448871,0.5892033,113940.0,113930.0,1.6148934]
[1754230449170,0.68499114,113940.0,113930.0,1.8433279]
[1754230449677,0.70664607,113940.0,113930.0,1.8913979]
[1754230449878,0.70664607,113940.0,113930.0,1.7555687]
[1754230450474,0.72885401,113940.0,113930.0,1.4240587]
[1754230450781,0.72885401,113940.0,113930.0,1.4832487]
[1754230451273,1.08965401,113940.0,113930.0,1.3896687]
[1754230451678,1.08965401,113940.0,113930.0,1.4201587]
[1754230451879,1.08965401,113940.0,113930.0,1.4793487]
[1754230452077,1.09065401,113940.0,113930.0,1.4793487]
[1754230452378,1.09065401,113940.0,113930.0,1.4803487]
[1754230452972,1.09065401,113940.0,113930.0,1.5296387]
[1754230453171,1.09265401,113940.0,113930.0,1.5286387]
[1754230454280,0.91712071,113940.0,113930.0,2.02249098]
[1754230454471,0.62924617,113940.0,113930.0,1.5286387]
[1754230454672,0.99004617,113940.0,113930.0,2.07178098]
[1754230455283,0.99004617,113940.0,113930.0,1.5286387]
[1754230455983,1.09152611,113940.0,113930.0,1.3038]
[1754230456782,1.63466839,113940.0,113930.0,1.3038]
[1754230457481,1.63466839,113940.0,113930.0,1.21412]
[1754230457978,1.09152611,113940.0,113930.0,1.21412]
[1754230458186,1.63466839,113940.0,113930.0,1.3896687]
[1754230458380,1.63466839,113940.0,113930.0,1.4201587]
[1754230458684,1.63466839,113940.0,113930.0,1.4793487]
[1754230459281,1.63466839,113940.0,113930.0,1.3038]
[1754230459484,1.63466839,113940.0,113930.0,1.4793487]
[1754230459878,1.63466839,113940.0,113930.0,1.3896687]
[1754230460788,1.63466839,113940.0,113930.0,1.36907717]
[1754230461282,1.63466839,113940.0,113930.0,1.22401847]
[1754230461586,1.63466839,113940.0,113930.0,1.19352847]
[1754230461983,0.5839587,113930.0,113920.0,0.48846]
[1754230462186,1.50955591,113930.0,113920.0,0.48846]
[1754230462384,1.60152857,113930.0,113920.0,0.48846]
[1754230462585,1.05838629,113930.0,113920.0,0.6640242]
[1754230464085,1.05838629,113930.0,113920.0,0.48846]
[1754230464494,0.5839742,113920.0,113910.0,0.4305545]
[1754230464685,0.96642913,113920.0,113910.0,0.4354412]
[1754230464987,0.96642913,113920.0,113910.0,0.4847312]
[1754230465182,0.96642913,113920.0,113910.0,0.4408382]
[1754230466184,0.96642913,113920.0,113910.0,0.3915482]
[1754230466784,0.96642913,113920.0,113910.0,0.4408382]
[1754230467290,0.96642913,113920.0,113910.0,0.4418382]
[1754230467484,0.96642913,113920.0,113910.0,0.4428382]
[1754230469287,0.96642913,113920.0,113910.0,0.4418382]
[1754230469488,0.23341493,113920.0,113910.0,0.93569048]
[1754230469790,0.40897913,113920.0,113910.0,0.98498048]
[1754230469989,0.53637913,113920.0,113910.0,0.98498048]
[1754230470188,0.60862913,113920.0,113910.0,0.98398048]
[1754230470389,0.60862913,113920.0,113910.0,0.4408382]
[1754230470798,0.60862913,113920.0,113910.0,0.98398048]
[1754230471195,0.60862913,113920.0,113910.0,0.4408382]
[1754230471698,0.96942913,113920.0,113910.0,0.4408382]
[1754230472793,0.96942913,113920.0,113910.0,0.4408496]
[1754230473893,0.6279169,113900.0,113890.0,0.14991552]
[1754230474095,0.60567153,113900.0,113890.0,0.36589552]
[1754230474285,1.06096184,113900.0,113890.0,0.41518552]
[1754230474492,1.06096184,113900.0,113890.0,0.4408804]
[1754230475194,1.06096184,113900.0,113890.0,0.3915904]
[1754230476100,1.06096184,113900.0,113890.0,0.3925904]
[1754230476503,1.13285275,113900.0,113890.0,0.3925904]
[1754230476807,1.13385275,113900.0,113890.0,0.3915904]
[1754230477392,1.13385275,113900.0,113890.0,0.21698]
[1754230477598,1.67699503,113900.0,113890.0,0.21698]
[1754230478002,1.67699503,113900.0,113890.0,0.1682]
[1754230478304,1.67699503,113900.0,113890.0,0.001]
[1754230479606,0.3388456,113880.0,113870.0,0.7970944]
[1754230479805,0.96649053,113880.0,113870.0,0.8463844]
[1754230480897,0.96649053,113880.0,113870.0,0.8493844]
[1754230481299,0.96649053,113880.0,113870.0,0.8033154]
[1754230481694,0.96649053,113880.0,113870.0,0.8053154]
[1754230482697,0.98923002,113880.0,113870.0,0.8053154]
[1754230482894,0.04439442,113880.0,113870.0,0.8053154]
[1754230483205,0.04439442,113880.0,113870.0,1.34845768]
[1754230483206,0.09238442,113880.0,113870.0,1.34845768]
[1754230483399,0.04439442,113880.0,113870.0,1.70925768]
[1754230483595,0.04439442,113880.0,113870.0,0.005]
[1754230483596,1.62164944,113880.0,113870.0,0.005]
[1754230483905,1.07850716,113880.0,113870.0,0.6623409]
[1754230484299,1.07850716,113880.0,113870.0,1.20548318]
[1754230484300,0.62298982,113880.0,113870.0,1.20548318]
[1754230484500,0.25294442,113880.0,113870.0,1.61341318]
[1754230484694,0.54941982,113880.0,113870.0,2.46757318]
[1754230484890,0.62298982,113880.0,113870.0,1.9244309]
[1754230485295,0.98378982,113880.0,113870.0,1.6508709]
[1754230485491,0.98378982,113880.0,113870.0,1.9244709]
[1754230485905,0.9838116,113880.0,113870.0,1.9244709]
[1754230486208,0.6230116,113880.0,113870.0,1.9244709]
[1754230486394,0.4473862,113880.0,113870.0,1.9244709]
[1754230486711,0.0444162,113880.0,113870.0,2.82841318]
[1754230487008,0.2680316,113880.0,113870.0,2.82841318]
[1754230487198,0.6230116,113880.0,113870.0,2.46761318]
[1754230487394,0.0444162,113880.0,113870.0,2.82841318]
[1754230488101,0.02167671,113880.0,113870.0,2.82841318]
[1754230489205,0.11988091,113900.0,113890.0,0.41061]
[1754230489403,0.13979023,113900.0,113890.0,1.58847228]
[1754230489602,0.07189091,113900.0,113890.0,1.58847228]
[1754230489800,0.4179997,113910.0,113890.0,1.54456388]
[1754230489996,0.5785597,113910.0,113900.0,0.86449688]
[1754230490200,0.59866155,113910.0,113900.0,0.7713946]
[1754230490608,0.59866155,113910.0,113900.0,1.0152646]
[1754230492401,0.60066155,113910.0,113900.0,1.0151846]
[1754230492598,1.50460383,113910.0,113900.0,0.6543846]
[1754230492797,1.14480383,113910.0,113900.0,0.6543846]
[1754230493308,0.67019946,113910.0,113900.0,0.6543846]
[1754230493604,0.30018976,113910.0,113900.0,0.6543846]
[1754230493910,0.30018976,113910.0,113900.0,1.35832688]
[1754230494207,0.11952791,113910.0,113900.0,1.35832688]
[1754230495908,0.07153791,113910.0,113900.0,1.35832688]
[1754230496510,0.07053791,113910.0,113900.0,1.35832688]
[1754230496705,0.07053791,113910.0,113900.0,1.36032688]
[1754230497604,0.07053791,113910.0,113900.0,1.53591088]
[1754230498307,0.002,113910.0,113900.0,1.53591088]
[1754230498720,0.04799,113930.0,113920.0,0.23773608]
[1754230499011,0.16884,113930.0,113920.0,1.98893988]
[1754230499205,0.04799,113930.0,113920.0,1.98893988]
[1754230500011,0.04999,113930.0,113920.0,1.98893988]
[1754230500209,0.05099,113930.0,113920.0,2.34973988]
[1754230500408,0.003,113930.0,113920.0,2.1120038]
[1754230500602,0.003,113930.0,113920.0,2.65514608]
[1754230500803,0.003,113930.0,113920.0,2.83069807]
[1754230501004,0.002,113930.0,113920.0,3.37384035]
[1754230501208,0.002,113930.0,113920.0,2.83069807]
[1754230502014,0.002,113930.0,113920.0,3.10453807]
[1754230502513,0.1170286,113940.0,113930.0,0.1755484]
[1754230502715,0.1170286,113940.0,113930.0,1.07949068]
[1754230504015,0.1190286,113940.0,113930.0,1.07949068]
[1754230504405,0.2955616,113940.0,113930.0,0.5363484]
[1754230504611,1.19368388,113940.0,113930.0,1.3902684]
[1754230504915,0.6505416,113940.0,113930.0,1.6638284]
[1754230505109,0.1200286,113940.0,113930.0,2.56777068]
[1754230505511,0.2955616,113940.0,113930.0,2.56777068]
[1754230505707,0.5356516,113940.0,113930.0,2.56777068]
[1754230506013,0.6505416,113940.0,113930.0,2.56777068]
[1754230506414,0.6505416,113940.0,113930.0,2.0246284]
[1754230506610,0.2805886,113940.0,113930.0,2.0246284]
[1754230506812,0.0720386,113940.0,113930.0,2.56777068]
[1754230507008,0.1200286,113940.0,113930.0,2.56777068]
[1754230508231,0.1200286,113940.0,113930.0,2.56896893]
[1754230508410,0.05099,113940.0,113930.0,2.56896893]
[1754230508610,0.003,113940.0,113930.0,2.56896893]
[1754230508810,0.003,113940.0,113930.0,2.74450493]
[1754230509617,0.003,113940.0,113930.0,2.20136265]
[1754230509814,0.11925268,113960.0,113950.0,0.1755175]
[1754230510021,0.11925268,113960.0,113950.0,1.35285978]
[1754230510211,0.4137879,113970.0,113960.0,0.1316204]
[1754230510212,0.04799,113970.0,113960.0,0.1316204]
[1754230510418,0.04799,113970.0,113960.0,1.21106478]
[1754230510607,0.25768,113980.0,113960.0,0.94781458]
[1754230510810,0.12682,113980.0,113970.0,1.11217728]
[1754230511207,0.12682,113980.0,113970.0,1.47417553]
[1754230511412,0.25768,113980.0,113970.0,1.47417553]
[1754230511716,1.43082157,113980.0,113950.0,0.1755094]
[1754230511922,0.5882376,113950.0,113940.0,1.8824021]
[1754230512118,0.41272,113950.0,113940.0,1.8824021]
[1754230512417,0.41272,113950.0,113940.0,2.1558421]
[1754230512621,0.5882376,113950.0,113940.0,2.1558421]
[1754230513120,0.5862376,113950.0,113940.0,2.1558421]
[1754230514023,0.5862376,113950.0,113940.0,1.8834021]
[1754230514221,0.5862376,113950.0,113940.0,2.1567221]
[1754230515724,0.5862376,113950.0,113940.0,1.8834021]
[1754230516116,0.5862376,113950.0,113940.0,2.1569621]
[1754230516517,0.5862376,113950.0,113940.0,2.1559621]
[1754230516721,0.5892376,113950.0,113940.0,2.1559621]
[1754230517425,0.5882529,113940.0,113930.0,0.5270062]
[1754230517623,1.58650657,113940.0,113930.0,0.8004462]
[1754230518024,0.9490529,113940.0,113930.0,0.8004462]
[1754230519221,0.97119314,113940.0,113930.0,0.8004462]
[1754230519525,0.97219314,113940.0,113930.0,0.8004462]
[1754230519924,0.97219314,113940.0,113930.0,0.8014462]
[1754230521429,0.97219314,113940.0,113930.0,0.2643062]
[1754230521620,1.60964681,113940.0,113930.0,0.5380262]
[1754230522030,0.97219314,113940.0,113930.0,0.5380262]
[1754230522524,0.97219314,113940.0,113930.0,0.2204211]
[1754230522830,0.97219314,113940.0,113930.0,0.27448]
[1754230522831,1.70592786,113940.0,113930.0,0.27448]
[1754230524326,0.5882683,113930.0,113920.0,0.4929606]
[1754230524534,1.60866221,113930.0,113920.0,0.4929606]
[1754230524834,1.71037479,113930.0,113920.0,0.4929606]
[1754230526033,1.07292112,113930.0,113920.0,0.4929606]
[1754230526335,1.07292112,113930.0,113920.0,0.4939606]
[1754230526535,0.53657282,113930.0,113920.0,0.4939606]
[1754230526735,0.43486024,113930.0,113920.0,0.8547606]
[1754230526930,0.43486024,113930.0,113920.0,1.49321427]
[1754230526931,0.14896024,113930.0,113920.0,1.49321427]
[1754230527234,0.27982024,113930.0,113920.0,0.8557606]
[1754230527539,0.43486024,113930.0,113920.0,0.4949606]
[1754230528032,0.61140854,113930.0,113920.0,0.2194406]
[1754230528241,1.70209204,113930.0,113920.0,0.4489517]
[1754230528537,1.70209204,113930.0,113920.0,0.1755517]
[1754230528837,0.5882838,113920.0,113910.0,0.4930262]
[1754230529033,0.97122404,113920.0,113910.0,0.4930262]
[1754230530032,0.97122404,113920.0,113910.0,0.2194662]
[1754230530232,0.97122404,113920.0,113910.0,0.4949462]
[1754230531138,0.97122404,113920.0,113910.0,0.4939462]
[1754230531441,0.97222404,113920.0,113910.0,0.4929462]
[1754230532034,1.60967771,113920.0,113910.0,0.2194662]
[1754230532229,0.5882992,113910.0,113900.0,0.5807154]
[1754230532435,1.60869311,113910.0,113900.0,0.5368179]
[1754230532638,1.51571054,113910.0,113900.0,0.5368179]
[1754230533135,1.53556081,113910.0,113900.0,0.4929211]
[1754230533638,0.63028971,113910.0,113900.0,0.4929211]
[1754230533839,1.53556081,113910.0,113900.0,0.4929211]
[1754230534227,1.17476081,113910.0,113900.0,0.4929211]
[1754230534434,1.53556081,113910.0,113900.0,0.4929211]
[1754230534634,0.5883146,113900.0,113890.0,0.4392978]
[1754230534835,1.15492594,113900.0,113890.0,0.4488778]
[1754230535036,1.2555235,113900.0,113890.0,0.4490378]
[1754230535736,1.6163235,113900.0,113890.0,0.4490378]
[1754230536432,1.6163235,113900.0,113890.0,0.4500378]
[1754230536638,1.7100906,113900.0,113890.0,0.27444]
[1754230537036,1.7100906,113900.0,113890.0,0.001]
[1754230537236,1.0718524,113900.0,113890.0,0.001]
[1754230537537,1.7100906,113900.0,113890.0,0.002]
[1754230539437,1.7100906,113900.0,113890.0,0.001]
[1754230539643,1.77902202,113900.0,113890.0,0.001]
[1754230541847,0.6382382,113890.0,113880.0,1.2146]
[1754230542145,0.47022454,113890.0,113880.0,1.2146]
[1754230542344,1.10846274,113890.0,113880.0,1.2146]
[1754230543739,0.47022454,113890.0,113880.0,1.7510256]
[1754230543943,0.72246454,113890.0,113880.0,1.7510256]
[1754230544142,0.72246454,113890.0,113880.0,1.2146]
[1754230544540,0.72246454,113890.0,113880.0,2.0098456]
[1754230544743,0.54685444,113890.0,113880.0,2.0108456]
[1754230545046,0.65271454,113890.0,113880.0,2.0108456]
[1754230545252,0.72246454,113890.0,113880.0,2.0256656]
[1754230545453,0.72246454,113890.0,113880.0,1.6648656]
[1754230545752,1.36070274,113890.0,113880.0,1.3912256]
[1754230545948,0.72246454,113890.0,113880.0,1.2156]
[1754230546343,1.36070274,113890.0,113880.0,0.001]
[1754230546951,1.72150274,113890.0,113880.0,0.001]
[1754230549849,0.0439071,113880.0,113850.0,0.3608]
[1754230550058,0.6031563,113860.0,113850.0,1.2436018]
[1754230551145,0.6031563,113860.0,113850.0,0.9700418]
[1754230551352,0.6031563,113860.0,113850.0,0.3608]
[1754230551553,0.6031563,113860.0,113850.0,1.1952718]
[1754230551756,0.70468854,113860.0,113850.0,1.1952718]
[1754230551945,0.70468854,113860.0,113850.0,1.1992718]
[1754230552149,1.34292674,113860.0,113850.0,0.3698]
[1754230552451,0.70468854,113860.0,113850.0,0.1846718]
[1754230552650,0.70468854,113860.0,113850.0,0.009]
[1754230552853,1.34292674,113860.0,113850.0,0.009]
[1754230553055,0.6006518,113870.0,113860.0,0.6092264]
[1754230553551,0.69411311,113870.0,113860.0,0.43357]
[1754230553742,1.73956131,113870.0,113860.0,0.38552]
[1754230553942,1.73956131,113870.0,113850.0,0.28284]
[1754230553943,0.6031564,113860.0,113850.0,0.28284]
[1754230554152,1.26414174,113860.0,113850.0,0.28284]
[1754230554352,1.35760305,113860.0,113850.0,0.28284]
[1754230554861,1.35460305,113860.0,113850.0,0.27384]
[1754230555060,1.35160305,113860.0,113850.0,0.27384]
[1754230555263,0.4206818,113850.0,113840.0,1.0578982]
[1754230555455,0.62591894,113850.0,113840.0,1.0139769]
[1754230555651,0.62591894,113850.0,113840.0,0.9700556]
[1754230555864,0.62091894,113850.0,113840.0,0.9700556]
[1754230556159,0.61691894,113850.0,113840.0,0.79437]
[1754230556366,0.61691894,113850.0,113840.0,0.9700572]
[1754230556660,0.61691894,113850.0,113840.0,0.9760572]
[1754230557056,0.61691894,113850.0,113840.0,0.80037]
[1754230557255,0.61691894,113850.0,113840.0,1.07525]
[1754230557463,0.61691894,113850.0,113840.0,1.2509372]
[1754230557770,1.35383336,113850.0,113840.0,0.006]
[1754230558069,1.71463336,113850.0,113840.0,0.006]
[1754230558859,1.62155223,113850.0,113840.0,0.009]
[1754230559159,1.07639516,113850.0,113840.0,0.009]
[1754230559751,0.3509472,113840.0,113830.0,0.3608]
[1754230559955,1.17109141,113840.0,113830.0,0.3608]
[1754230560151,0.72137325,113840.0,113830.0,0.3608]
[1754230560363,0.72137325,113840.0,113830.0,0.9700727]
[1754230560562,0.1757181,113820.0,113810.0,0.5804554]
[1754230560860,0.54483563,113820.0,113810.0,1.2110071]
[1754230561062,0.11733563,113820.0,113810.0,1.2110071]
[1754230561252,0.47554373,113820.0,113810.0,1.2110071]
[1754230561453,0.72055373,113820.0,113810.0,0.9256071]
[1754230561649,1.2657108,113820.0,113810.0,0.7059512]
[1754230561955,1.28268214,113820.0,113810.0,0.8816847]
[1754230562155,1.28168214,113820.0,113810.0,0.7059512]
[1754230562361,1.28168214,113820.0,113810.0,0.71985]
[1754230562562,1.28168214,113820.0,113810.0,0.8955835]
[1754230562866,0.73652507,113820.0,113810.0,1.88732]
[1754230563066,0.6022336,113810.0,113800.0,0.3608]
[1754230563365,0.52708744,113810.0,113800.0,0.684989]
[1754230563566,0.09958744,113810.0,113800.0,1.045789]
[1754230563760,0.62720014,113820.0,113810.0,0.6093036]
[1754230564063,0.55105878,113820.0,113810.0,0.6093036]
[1754230564259,0.12355878,113820.0,113810.0,1.2569036]
[1754230564563,0.02397134,113820.0,113810.0,1.2569036]
[1754230564871,0.002,113820.0,113810.0,1.2569036]
[1754230565161,0.07204805,113840.0,113830.0,0.6092727]
[1754230565362,0.06285241,113850.0,113830.0,1.48955707]
[1754230565553,0.08025746,113850.0,113840.0,1.51521437]
[1754230565754,0.29808549,113890.0,113880.0,0.3503756]
[1754230565966,0.12497499,113890.0,113880.0,1.16788678]
[1754230566157,0.30058509,113890.0,113880.0,1.2570756]
[1754230566367,0.90325717,113890.0,113880.0,1.2570756]
[1754230566562,0.4278501,113890.0,113880.0,1.2570756]
[1754230566953,0.4278501,113890.0,113860.0,1.4351209]
[1754230566954,0.175641,113870.0,113860.0,1.4351209]
[1754230567166,0.99636312,113870.0,113860.0,1.7227209]
[1754230567672,0.99436312,113870.0,113860.0,1.9816609]
[1754230567966,0.356131,113870.0,113860.0,1.9816609]
[1754230568351,1.23837312,113870.0,113860.0,1.47438]
[1754230568558,1.42391312,113870.0,113860.0,1.42633]
[1754230568753,1.52220009,113870.0,113860.0,1.3573]
[1754230569055,0.1756718,113850.0,113840.0,0.25882]
[1754230569258,1.06614392,113850.0,113840.0,0.7225073]
[1754230569461,0.52211293,113850.0,113840.0,0.7225073]
[1754230569660,1.16034505,113850.0,113840.0,0.7225073]
[1754230569865,1.15934505,113850.0,113840.0,0.7225073]
[1754230570461,0.52111293,113850.0,113840.0,0.7225073]
[1754230570959,0.34644113,113850.0,113840.0,1.0833073]
[1754230571466,0.52211293,113850.0,113840.0,1.0833073]
[1754230571656,0.34644113,113850.0,113840.0,1.0833073]
[1754230571852,0.09720113,113850.0,113840.0,1.0843073]
[1754230572264,0.52975293,113850.0,113840.0,1.0843073]
[1754230572866,0.35108113,113850.0,113840.0,1.0833073]
[1754230573060,0.36408113,113850.0,113840.0,1.0853073]
[1754230573262,0.53975303,113850.0,113840.0,1.0853073]
[1754230573768,0.61806303,113850.0,113840.0,1.0853073]
[1754230573969,0.71386303,113850.0,113840.0,1.0853073]
[1754230574269,0.73481991,113850.0,113840.0,1.0853073]
[1754230575462,1.37305203,113850.0,113840.0,0.9026173]
[1754230576066,1.37305203,113850.0,113840.0,0.6148573]
[1754230576266,1.73385203,113850.0,113840.0,0.002]
[1754230576471,1.73385203,113850.0,113840.0,0.28952]
[1754230577063,1.73385203,113850.0,113840.0,0.002]
[1754230577271,1.73385203,113850.0,113840.0,0.14147]
[1754230577966,1.37305203,113850.0,113840.0,0.14147]
[1754230578170,1.73385203,113850.0,113840.0,0.002]
[1754230578661,1.73385203,113850.0,113840.0,0.1776873]
[1754230579372,1.73385203,113850.0,113840.0,0.002]
[1754230579869,1.09561991,113850.0,113840.0,0.3849573]
[1754230580067,1.37305203,113850.0,113840.0,0.6124073]
[1754230580279,0.35115801,113850.0,113840.0,0.9732073]
[1754230580871,0.73481981,113850.0,113840.0,0.9732073]
[1754230582072,0.55914801,113850.0,113840.0,0.9732073]
[1754230582265,0.03395688,113850.0,113840.0,0.9732073]
[1754230585370,0.03395688,113850.0,113840.0,1.61143942]
[1754230588275,0.013,113850.0,113840.0,0.9732073]
[1754230590274,0.06189,113850.0,113840.0,0.9732073]
[1754230590476,0.06189,113850.0,113840.0,1.2369073]
[1754230591373,0.52506979,113850.0,113840.0,1.4737673]
[1754230591570,0.63919979,113850.0,113840.0,1.1878073]
[1754230591769,1.27743191,113850.0,113840.0,1.4737673]
[1754230591970,1.27743191,113850.0,113840.0,1.1878073]
[1754230592170,1.27743191,113850.0,113840.0,1.1129673]
[1754230592480,0.63919979,113850.0,113840.0,1.1129673]
[1754230592773,0.08142799,113850.0,113840.0,1.4737673]
[1754230593165,0.03253799,113850.0,113840.0,2.11199942]
[1754230593671,0.013,113850.0,113840.0,2.11199942]
[1754230594171,0.04889,113870.0,113860.0,0.04828]
[1754230594375,0.20802893,113870.0,113860.0,0.6525363]
[1754230594569,0.48165044,113870.0,113860.0,0.6525363]
[1754230594767,0.61003044,113870.0,113860.0,0.6525363]
[1754230594967,0.72416044,113870.0,113860.0,0.6525363]
[1754230596175,0.72416044,113870.0,113860.0,0.2917363]
[1754230596474,0.72416044,113870.0,113860.0,0.6525363]
[1754230596670,0.73516044,113870.0,113860.0,0.6545363]
[1754230596870,0.07943893,113870.0,113860.0,0.6545363]
[1754230597263,0.06843893,113870.0,113860.0,0.6525363]
[1754230597468,0.02854893,113870.0,113860.0,1.29276842]
[1754230599670,0.07743893,113870.0,113860.0,1.29276842]
[1754230600673,0.07743893,113870.0,113860.0,1.29350842]
[1754230601376,0.25307983,113870.0,113860.0,0.6564663]
[1754230602482,0.65517983,113870.0,113860.0,0.6564663]
[1754230602672,0.65517983,113870.0,113860.0,0.9422663]
[1754230603378,0.65917983,113870.0,113860.0,0.9432663]
[1754230603770,0.65917983,113870.0,113860.0,0.6574663]
[1754230603969,0.6396309,113870.0,113860.0,0.9427363]
[1754230604167,1.29765892,113870.0,113860.0,0.003]
[1754230604385,1.75155431,113870.0,113860.0,0.003]
[1754230605078,0.44901,113860.0,113840.0,1.21536]
[1754230605267,1.26291392,113850.0,113840.0,1.5016]
[1754230605782,1.26291392,113850.0,113840.0,1.21536]
[1754230605783,1.72310045,113850.0,113840.0,1.21536]
[1754230605976,1.74321945,113850.0,113840.0,1.21536]
[1754230606178,1.10498733,113850.0,113840.0,1.21536]
[1754230606377,1.74321945,113850.0,113840.0,1.3910472]
[1754230606579,0.74418733,113850.0,113840.0,1.3910472]
[1754230607082,0.75318733,113850.0,113840.0,1.3930472]
[1754230607781,1.39141945,113850.0,113840.0,1.3930472]
[1754230608081,0.75118733,113850.0,113840.0,1.3920472]
[1754230608382,0.75418733,113850.0,113840.0,1.8228472]
[1754230608585,0.63587723,113850.0,113840.0,1.8228472]
[1754230608784,0.75418723,113850.0,113840.0,1.8228472]
[1754230609176,0.75818723,113850.0,113840.0,1.8228472]
[1754230609375,0.75818723,113850.0,113840.0,2.1094072]
[1754230609585,0.31220553,113850.0,113840.0,2.1094072]
[1754230609784,0.081029,113850.0,113840.0,2.1124072]
[1754230610788,0.06091,113850.0,113840.0,2.1124072]
[1754230611282,0.014,113850.0,113840.0,2.75063932]
[1754230612392,0.01026,113850.0,113840.0,2.75063932]
[1754230612582,0.2225512,113870.0,113860.0,0.2222263]
[1754230612883,0.06769433,113870.0,113860.0,1.2982063]
[1754230613385,0.24333523,113870.0,113860.0,1.2982063]